Cogmind - Beta 15 @@@ ROGUE MODE // 2025.08.17 @ 14:51:08 Player: JuustuToug Result: Destroyed by T7-XPG(j) with Overtuned Pulse Rifle Performance ------------- Evolutions (1) 500 Regions Visited (5) 1000 Robots Destroyed (33) 165 Value Destroyed (1046) 1046 Prototype IDs (21) 420 Alien Tech Used (0) 0 Bonus (800) 800 TOTAL SCORE: 3931 Bonus ------- Registered with UFD 300 Met Optimus in HQ 500 Cogmind --------- Core Integrity 0/400 Matter 300/300 Energy 265/265 System Corruption 1% Temperature Cool (12) Movement Walking (145) Location -9/Scraptown Parts ------- > --- POWER (1) -------- Improved Ion Engine > --- PROPULSION (4) --- Makeshift Leg Assembled Alloy Leg Xenon Bombardment Thruster > --- UTILITY (2) ------ Medium Storage Unit Layered Medium Armor Plating > --- WEAPON (2) ------- Plasma Rifle Cooled Plasma Cannon > --- INVENTORY (10) --- Ion Engine Light Ion Engine Improved Ion Engine Cooling System Structural Scanner Enhanced Optical Array Experimental Sensor Array Hardened Light Armor Plating Shotgun Proton Missile Launcher Peak State ------------ > --- POWER ------------ Improved Ion Engine > --- PROPULSION ------- Makeshift Leg Flexi-carbon Leg Assembled Alloy Leg Xenon Bombardment Thruster > --- UTILITY ---------- Medium Storage Unit Layered Medium Armor Plating > --- WEAPON ----------- Cooled Plasma Cannon Proton Missile Launcher > --- INVENTORY -------- Ion Engine Light Ion Engine Improved Ion Engine Cooling System Structural Scanner Enhanced Optical Array Experimental Sensor Array Hardened Light Armor Plating Plasma Rifle Shotgun [Rating: 43] Favorites ----------- Power Improved Ion Engine Engine Improved Ion Engine Propulsion Xenon Bombardment Thruster Treads Light Treads Leg Flexi-carbon Leg Hover Unit Airjet Flight Unit Xenon Bombardment Thruster Utility Medium Storage Unit Device Cooling System Storage Medium Storage Unit Hackware Hacking Suite Protection Layered Medium Armor Plating Weapon Shotgun Energy Gun EM Pulse Gun Energy Cannon Cooled Plasma Cannon Ballistic Gun Shotgun Launcher Mini Grenade Launcher Impact Weapon Flail Build | -11 -10 -9 -9 -9 -9 ------- Run | Yrd Mat Mat Sto Rec Scr Slots Evolved 2 | . . 2 . . . Power . | . . . . . . Propulsion 2 | . . 2 . . . Utility . | . . . . . . Weapon . | . . . . . . Parts Attached 55 | 6 13 8 13 1 14 Power 8 | 1 2 . 3 1 1 Engine 8 | 1 2 . 3 1 1 Core . | . . . . . . Reactor . | . . . . . . Propulsion 24 | 2 4 6 4 . 8 Treads 4 | . . . 4 . . Leg 10 | 2 2 . . . 6 Wheel . | . . . . . . Hover 5 | . . 5 . . . Flight 5 | . 2 1 . . 2 Utility 8 | 1 3 . 1 . 3 Device 4 | . 2 . . . 2 Storage 2 | 1 . . 1 . . Processor . | . . . . . . Hackware 1 | . 1 . . . . Protection 1 | . . . . . 1 Artifact . | . . . . . . Weapon 15 | 2 4 2 5 . 2 Energy Gun 6 | 2 2 1 . . 1 Energy Cannon 2 | . . . 2 . . Ballistic Gun 4 | . 2 1 1 . . Ballistic Cannon . | . . . . . . Launcher 2 | . . . 1 . 1 Special Weapon . | . . . . . . Impact Weapon 1 | . . . 1 . . Slashing Weapon . | . . . . . . Piercing Weapon . | . . . . . . Special Melee Weapon . | . . . . . . Unidentified Prototypes 5 | . 1 . 4 . . Corrupted Parts 2 | . 2 . . . . System Corruption 4 | . 4 . . . . Parts Lost 15 | . 3 . 9 1 2 Power 2 | . . . 2 . . Propulsion 8 | . 1 . 4 1 2 Utility . | . . . . . . Weapon 5 | . 2 . 3 . . Highest Loss Streak 8 | . 2 . 8 1 1 To Critical Strikes . | . . . . . . Average Backups 7 | 2 4 4 5 5 9 Power 2 | . 1 1 1 1 2 Propulsion . | . 1 . . . . Utility 3 | . . 1 1 2 4 Weapon 2 | . 1 1 2 1 2 Tool/Special . | . . . . . . Unused Backups 11 | . 5 . 1 . 5 Power 2 | . . . . . 2 Propulsion 2 | . 2 . . . . Utility 4 | . . . 1 . 3 Weapon 3 | . 3 . . . . Tool/Special . | . . . . . . Average Slot Usage (%) 95 | . 92 97 90 91 96 Engine 11 | . 14 11 10 11 11 Treads 8 | . . . 14 25 6 Leg 13 | . 22 . . . 15 Hover 1 | . . 28 16 . . Flight 14 | . 4 15 7 11 18 Device 4 | . 10 11 . . 3 Storage 10 | . 11 . 8 11 11 Hackware 6 | . 2 11 11 11 6 Energy Gun 4 | . 19 8 1 . 1 Energy Cannon 8 | . . . 7 11 11 Ballistic Gun 8 | . 5 11 8 11 9 Peak Build Rating 43 | 6 13 21 25 19 43 Average Rating 24 | 3 8 20 18 18 31 On Entrance 13 | . 6 13 21 19 19 Naked Turns . | . . . . . . Heaviest Build 37 | 14 17 12 26 28 37 Greatest Support 70 | 20 20 32 60 60 70 Greatest Overweight (x) 2 | . 2 1 2 1 1 Average Overweight (x) . | . . . . . . Largest Inventory Capacity 10 | 8 8 5 10 10 10 Average Capacity 9 | 7 7 5 8 10 10 Most Carried 10 | 5 8 5 8 6 10 Average Carried 7 | 2 4 4 5 5 9 Final Capacity 10 | 8 5 5 10 10 10 Final Carried 10 | 2 5 5 5 6 10 Class Distribution -------------------- 76% | Mutant 23% | Scavenger-Mutant Dominant Class ---------------- Mutant | -10/Materials Mutant | -9/Materials Scavenger-Mutant | -9/Storage Scavenger-Mutant | -9/Recycling Mutant | -9/Scraptown Resources | -11 -10 -9 -9 -9 -9 ----------- Run | Yrd Mat Mat Sto Rec Scr Matter Collected 979 | 166 246 55 41 252 219 Remotely . | . . . . . . Salvage Created 1226 | . 457 55 264 396 54 Parts 72 | . 31 2 22 17 . Haulers Intercepted 1 | . . 1 . . . Recyclers Shooed . | . . . . . . Parts Field Recycled . | . . . . . . Retrieved Matter . | . . . . . . Parts Self-Destructed . | . . . . . . Prevented . | . . . . . . Kills | -11 -10 -9 -9 -9 -9 ------- Run | Yrd Mat Mat Sto Rec Scr Combat Hostiles Destroyed 27 | . 8 . 11 7 1 Guns 11 | . 8 . 3 . . Cannons 6 | . . . . 5 1 AOE 7 | . . . 7 . . Classes Destroyed 10 | . 4 1 2 2 1 Builder 2 | . 2 . . . . Hauler 1 | . . 1 . . . Recycler 1 | . . . . 1 . Operator 1 | . 1 . . . . Watcher 1 | . 1 . . . . Swarmer 7 | . . . 6 1 . Grunt 8 | . 8 . . . . Sentry 9 | . . . 5 4 . Programmer 2 | . . . . 2 . Mutant 1 | . . . . . 1 Best Kill Streak 10 | . 2 1 10 3 1 Combat Bots Only 10 | . 2 . 10 2 1 Max Kills in Single Turn 5 | . 1 1 5 1 1 Gunslinging . | . . . . . . Exploded 5 | . . . 5 . . Melee . | . . . . . . Uniques/NPCs Destroyed . | . . . . . . Combat | -11 -10 -9 -9 -9 -9 -------- Run | Yrd Mat Mat Sto Rec Scr Hostile Shots Fired 273 | . 64 15 131 23 40 Missed 91 | . 13 11 48 3 16 Hits 182 | . 51 4 83 20 24 Melee 1 | . . . . . 1 Projectile 181 | . 51 4 83 20 23 Critical Strikes 4 | . 1 . 2 . 1 Damage Taken 2267 | . 665 60 957 242 343 Core 533 | . 127 . 259 66 81 Absorbed by Shields . | . . . . . . Core Remaining (%) 74 | 100 49 . . . . Volleys Fired 239 | . 50 2 13 15 159 Largest 2 | . 2 2 2 1 2 Hottest 110 | . 80 68 105 105 110 Shots Fired 374 | . 87 4 15 16 252 Gun 192 | . 87 4 7 1 93 Cannon 177 | . . . 4 15 158 Launcher 5 | . . . 4 . 1 Special . | . . . . . . Kinetic 13 | . 4 2 6 1 . Thermal 307 | . 37 . 4 15 251 Explosive 4 | . . . 4 . . Electromagnetic 50 | . 46 2 1 . 1 Robot Hit Streak 9 | . 8 3 9 9 2 Robot Miss Streak 5 | . 5 2 2 2 1 Penetration Max . | . . . . . . Secondary Targets . | . . . . . . Shots Hit Robots 80 | . 47 4 14 13 2 Core Hits 43 | . 22 2 14 4 1 Critical Kills 2 | . . . 1 1 . Critical Parts Destroyed . | . . . . . . Critical Strikes 2 | . . . 1 1 . Meltdown 2 | . . . 1 1 . Melee Attacks 9 | . . . 9 . . Impact 9 | . . . 9 . . Slashing . | . . . . . . Piercing . | . . . . . . Sneak Attacks . | . . . . . . Combat Hostiles . | . . . . . . Follow-up Attacks . | . . . . . . Damage Inflicted 2199 | . 569 42 581 831 176 Guns 708 | . 569 42 75 . 22 Cannons 1031 | . . . 68 831 132 Explosions 353 | . . . 331 . 22 Melee 107 | . . . 107 . . Ramming . | . . . . . . Kinetic 118 | . 20 23 75 . . Thermal 1294 | . 241 . 68 831 154 Explosive 331 | . . . 331 . . Electromagnetic 349 | . 308 19 . . 22 Impact 107 | . . . 107 . . Slashing . | . . . . . . Piercing . | . . . . . . Highest Corruption 4 | . 4 . 1 2 1 Average Corruption 1 | . 1 . 1 1 1 Corruption Purged . | . . . . . . Corruption Blocked . | . . . . . . Effects 16 | . 6 . 2 7 1 Message Errors 3 | . 1 . . 2 . Matter Fused 4 | . 1 . 1 1 1 Heat Flow Errors 2 | . 2 . . . . Energy Discharges 3 | . 1 . . 2 . Data Loss (major) 1 | . . . . 1 . Misfires 3 | . 1 . 1 1 . Overload Shots 41 | . . . 4 12 25 Effects 4 | . . . . 1 3 Energy Bleed 1 | . . . . . 1 Heat Surge 2 | . . . . 1 1 Short Circuit 1 | . . . . . 1 Overflow Damage 240 | . . . 26 208 6 Projectiles 214 | . . . . 208 6 Explosions 23 | . . . 23 . . Melee 3 | . . . 3 . . Knockbacks . | . . . . . . Impact . | . . . . . . Kinetic . | . . . . . . Secondary . | . . . . . . Self-Inflicted Damage 46 | . . . 46 . . Shots 3 | . . . 3 . . Rammed . | . . . . . . Targets Rammed . | . . . . . . Kicked . | . . . . . . Crushed . | . . . . . . Highest Temperature 467 | . 202 12 116 467 409 Average Temperature 95 | . 26 6 41 142 111 Received Heat Transfer 759 | . 402 27 204 36 90 Effects 4 | . . . . 3 1 Shutdowns 1 | . . . . 1 . Interference 1 | . . . . . 1 Matter Decay 1 | . . . . 1 . Short Circuit 1 | . . . . 1 . Siege Activations . | . . . . . . Martial Activations . | . . . . . . Shielding Activations . | . . . . . . Robots Disrupted . | . . . . . . Combat Hostiles . | . . . . . . Robots Corrupted 1 | . 1 . . . . Combat Hostiles . | . . . . . . Parts Fried 4 | . 4 . . . . Impact Corruptions 1 | . . . 1 . . Robots Melted 3 | . . . 1 2 . Combat Hostiles 3 | . . . 1 2 . Parts Melted 5 | . . . 2 3 . Heat Transferred 1790 | . 550 . 80 980 180 Parts Sabotaged . | . . . . . . Parts Stolen . | . . . . . . Parts Stripped . | . . . . . . Power Chain Reactions . | . . . . . . Alert | -11 -10 -9 -9 -9 -9 ------- Run | Yrd Mat Mat Sto Rec Scr Maximum Alert Level 1 | . . . 1 . . Low Security (%) 91 | 100 100 100 41 100 . Level 1 8 | . . . 58 . . Level 2 . | . . . . . . Level 3 . | . . . . . . Level 4 . | . . . . . . Level 5 . | . . . . . . High Security . | . . . . . . Max Security . | . . . . . . Peak Influence 377 | . 109 95 377 120 . Initial 120 | . . . 39 120 . Average 54 | . 32 18 213 29 . Influence Increases 1151 | . 276 143 531 201 . Destroy 0b10 Robot/C 520 | . 160 . 220 140 . Destroy 0b10 Robot/NC 30 | . 20 5 . 5 . Destroy Leader 104 | . 42 2 60 . . Successful Hack 79 | . 9 16 . 54 . Disable Machine 60 | . 15 . 45 . . Destroy Structure 28 | . . . 26 2 . Partial Spotted 75 | . . 60 15 . . Lose Combat Pursuer 255 | . 30 60 165 . . Influence Decreases 1151 | . 276 48 316 504 7 Entered New Map 253 | . . . 56 190 7 Time Decay 764 | . 246 48 170 300 . Lost Part 120 | . 30 . 90 . . Purge Threat 14 | . . . . 14 . Squads Dispatched 4 | . 2 . 2 . . Investigation 2 | . 1 . 1 . . Extermination . | . . . . . . Reinforcement 2 | . 1 . 1 . . Assault . | . . . . . . Garrison . | . . . . . . Intercept . | . . . . . . Searches Triggered . | . . . . . . Construction Impeded . | . . . . . . Haulers Reinforced . | . . . . . . Active Scanning Responses . | . . . . . . Cargo Convoy Interrupts . | . . . . . . Stealth | -11 -10 -9 -9 -9 -9 --------- Run | Yrd Mat Mat Sto Rec Scr Distress Signals 2 | . . 1 1 . . Communications Jammed . | . . . . . . Distress Signals . | . . . . . . Times Spotted 77 | . 20 6 28 8 15 Peak Tracking Total 15 | . 4 7 15 3 3 Tactical Retreats 7 | . 2 2 3 . . Traps | -11 -10 -9 -9 -9 -9 ------- Run | Yrd Mat Mat Sto Rec Scr Traps Triggered 2 | . . . 2 . . Indirectly . | . . . . . . Trap Hack Attempts . | . . . . . . Triggered . | . . . . . . Disarmed . | . . . . . . Reprogrammed . | . . . . . . Reused . | . . . . . . Traps Extracted . | . . . . . . Installed . | . . . . . . Triggered . | . . . . . . Machines | -11 -10 -9 -9 -9 -9 ---------- Run | Yrd Mat Mat Sto Rec Scr Machines Disabled 6 | . 1 . 3 . 2 Max in Single Turn 2 | . 1 . 2 . 1 Garrison Access 1 | . . . 1 . . Machines Repaired . | . . . . . . Machines Dismantled . | . . . . . . Machines Sabotaged . | . . . . . . Overloaded Fab Kills . | . . . . . . Hacking | -11 -10 -9 -9 -9 -9 --------- Run | Yrd Mat Mat Sto Rec Scr Machines Accessed 33 | . 6 8 5 10 4 Terminals 20 | . 5 6 3 6 . Fabricators . | . . . . . . Repair Stations . | . . . . . . Recycling Units 7 | . 1 1 1 4 . Scanalyzers 1 | . . 1 . . . Garrison Access 1 | . . . 1 . . Total Hacks 93 | . 11 29 12 31 10 Successful 69 | . 6 24 7 22 10 Failed 24 | . 5 5 5 9 . Catastrophic 4 | . 1 1 1 1 . Database Lockouts . | . . . . . . Manual 25 | . 9 13 3 . . Terminals 55 | . 10 22 5 18 . Fabricators . | . . . . . . Repair Stations . | . . . . . . Recycling Units 20 | . 1 1 5 13 . Scanalyzers 6 | . . 6 . . . Garrison Access 2 | . . . 2 . . Terminal Hacks 35 | . 1 11 3 10 10 Record 9 | . . . . . 9 Part Schematic 6 | . . 1 . 5 . Prototype ID Bank 2 | . . 1 . 1 . Open Door 2 | . . . 2 . . Branch Access Points 2 | . . 1 . 1 . Emergency Access Points 1 | . . 1 . . . Terminal Index 1 | . . 1 . . . Unreport Threat 2 | . . . . 2 . Dispatch Records 1 | . . 1 . . . Surveillance Status 1 | . . 1 . . . Recall Assault 1 | . 1 . . . . Registered Components 2 | . . 1 . 1 . Zone Layout 4 | . . 3 1 . . Proto ID Catalog 1 | . . . . . 1 Fabricator Hacks . | . . . . . . Repair Station Hacks . | . . . . . . Recycling Unit Hacks 16 | . 1 1 2 12 . Process 1 | . . . . 1 . Report Inventory 7 | . 1 1 1 4 . Retrieve Matter 7 | . . . 1 6 . Retrieve Components 1 | . . . . 1 . Scanalyzer 6 | . . 6 . . . Insert Component 3 | . . 3 . . . Analyze 3 | . . 3 . . . Garrison Access Hacks 1 | . . . 1 . . Seal Access 1 | . . . 1 . . Unauthorized Hacks 11 | . 4 6 1 . . Terminals 11 | . 4 6 1 . . Botnet 11 | . 4 6 1 . . Fabricators . | . . . . . . Repair Stations . | . . . . . . Recycling Units . | . . . . . . Scanalyzers . | . . . . . . Garrison Access . | . . . . . . Data Cores Recovered . | . . . . . . Used . | . . . . . . Hacking Detections 15 | . 3 5 3 4 . Full Trace Events 4 | . 2 . 2 . . Feedback Events . | . . . . . . Feedback Blocked . | . . . . . . Robot Schematics Acquired . | . . . . . . Robots Built . | . . . . . . Authchips . | . . . . . . Time . | . . . . . . Total Robot Build Rating . | . . . . . . Part Schematics Acquired 9 | . . 4 . 5 . Parts Built . | . . . . . . Authchips . | . . . . . . Time . | . . . . . . Total Part Build Rating . | . . . . . . Parts Repaired . | . . . . . . Time . | . . . . . . Parts Recycled . | . . . . . . Recycled Matter 31 | . . . . 31 . Retrieved Matter 31 | . . . . 31 . Retrieved Components 1 | . . . . 1 . Parts Scanalyzed 3 | . . 3 . . . Part Schematics Acquired 3 | . . 3 . . . Parts Damaged . | . . . . . . Bothacking | -11 -10 -9 -9 -9 -9 ------------ Run | Yrd Mat Mat Sto Rec Scr Used RIF Installer . | . . . . . . Robots Hacked . | . . . . . . Non-combat . | . . . . . . Combat . | . . . . . . Robot Hacks Applied . | . . . . . . Relay Couplers Released . | . . . . . . Fabnet Peak Effective % . | . . . . . . Robots Rewired . | . . . . . . Allies Hacked . | . . . . . . Hacks Repelled . | . . . . . . Allies | -11 -10 -9 -9 -9 -9 -------- Run | Yrd Mat Mat Sto Rec Scr Total Allies . | . . . . . . Largest Group . | . . . . . . Highest-Rated Group . | . . . . . . Highest-Rated Ally . | . . . . . . Total Orders . | . . . . . . Ally Attacks . | . . . . . . Total Damage . | . . . . . . Kills . | . . . . . . Allies Corrupted . | . . . . . . Allies Melted 7 | . . . . . 7 Intel | -11 -10 -9 -9 -9 -9 ------- Run | Yrd Mat Mat Sto Rec Scr Active Infowar (turns) 755 | . 172 152 11 . 420 Sensors 420 | . . . . . 420 Structural 335 | . 172 152 11 . . Robot Analysis Total . | . . . . . . Derelict Logs Recovered . | . . . . . . Drone Launches . | . . . . . . Drone Recoveries . | . . . . . . Exploration | -11 -10 -9 -9 -9 -9 ------------- Run | Yrd Mat Mat Sto Rec Scr Turns Passed 6727 | 48 1034 152 352 983 4158 Spaces Moved 3661 | 33 779 295 268 525 1761 Core 7 | 7 . . . . . Treads 1003 | . . . 94 525 384 Legs 1808 | 26 405 . . . 1377 Wheels . | . . . . . . Hover 334 | . . 175 159 . . Flight 509 | . 374 120 15 . . Fastest Speed 34 | 50 37 34 48 160 120 Average Speed 138 | 105 80 43 94 174 177 Slowest Speed 240 | 120 190 120 180 240 240 Overloaded Moves . | . . . . . . Propulsion Burnouts . | . . . . . . Robots Hopped 3 | . 2 1 . . . Potential Cave-ins 6 | . . . . . 6 Cave-ins Triggered . | . . . . . . Exploration Rate (%) 62 | 2 90 32 56 99 94 Regions Visited 5 Branch Regions 3 Pre-discovered Areas . | . . . . . . Known Exits Taken 1 | . . 1 . . . Unknown Exits Taken 4 | 1 1 . 1 1 . Scrap Searched 7 | . . . . . 7 Spaces Dug 232 | . . . 1 . 231 Terrain Destroyed 261 | . . . 26 2 233 Melee 1 | . . . 1 . . Projectile 238 | . . . 3 2 233 AOE 22 | . . . 22 . . Terrain Rammed . | . . . . . . Walls Destroyed . | . . . . . . Machines Disabled . | . . . . . . Actions | -11 -10 -9 -9 -9 -9 --------- Run | Yrd Mat Mat Sto Rec Scr Total 4914 | 46 1097 314 338 580 2539 Wait 862 | . 226 1 14 37 584 Move 3650 | 32 774 292 267 524 1761 Hop 3 | . 2 1 . . . Pick Up 55 | 8 19 5 12 2 9 Fast Attach 5 | . 1 . 2 . 2 Attach 26 | 6 6 4 8 . 2 Detach 1 | . . 1 . . . Swap 37 | . 7 5 9 1 15 Drop 27 | . 12 3 4 1 7 Fire 239 | . 50 2 13 15 159 Melee 9 | . . . 9 . . Ram . | . . . . . . Kick . | . . . . . . Crush . | . . . . . . Escape Stasis . | . . . . . . Rewire . | . . . . . . Trap . | . . . . . . Miscellaneous . | . . . . . . Route ------- -11/Scrapyard -10/Materials (discovered 5 exits: *Mat x3 / [*Min] / [*Sub]) -9/Materials (discovered 3 exits: Min x2 / *Sto) -9/Storage -9/Recycling (discovered 2 exits: [*Fac] / *Scr) -9/Scraptown (discovered 2 exits: [*Fac x2]) History --------- Turn | Location | Event 8 | -11/Scrapyard | Discovered new exit (range 15) 49 | -11/Scrapyard | Entered Materials 101 | -10/Materials | Discovered new exit (range 12) 318 | -10/Materials | Build established: Mutant 486 | -10/Materials | Discovered new exit (range 12) 817 | -10/Materials | Discovered new exit (range 4) 947 | -10/Materials | Discovered new exit (range 12) 978 | -10/Materials | Discovered new exit (range 8) 1072 | -10/Materials | Core integrity fell below 50% 1083 | -10/Materials | Entered another Materials area 1083 | -9/Materials | Evolved 2 slots: Propulsion x2 1180 | -9/Materials | Identified exit to Mines 1180 | -9/Materials | Identified exit to Storage 1235 | -9/Materials | Entered Storage 1388 | -9/Storage | Core integrity fell below 50% 1424 | -9/Storage | Destroyed 10 combat bots 1426 | -9/Storage | Lost 8 parts (1p4n3w) 1558 | -9/Storage | Used back door to open Recycling access 1558 | -9/Storage | Discovered new exit (range 5) 1587 | -9/Storage | Entered Recycling 1651 | -9/Recycling | Build established: Scavenger-Mutant 1827 | -9/Recycling | Discovered new exit (range 16) 2339 | -9/Recycling | Core integrity fell below 20% 2513 | -9/Recycling | Scanned before Scraplab entrance 2546 | -9/Recycling | Entered Scraplab 2566 | -9/Recycling | Discovered new exit (range 2) 2570 | -9/Recycling | Entered Scraptown 2570 | -9/Scraptown | System corruption cleaned by C-Scrubber 2994 | -9/Scraptown | Discovered new exit (range 3) 3115 | -9/Scraptown | Build established: Mutant 3629 | -9/Scraptown | Visited Junk Repository 3721 | -9/Scraptown | Visited CPS Storage 3743 | -9/Scraptown | Visited Symbiants 3810 | -9/Scraptown | Visited The Evicted 3903 | -9/Scraptown | Visited Assassins FH 3918 | -9/Scraptown | Visited Artisan Demo Area 3975 | -9/Scraptown | Visited Junk Repository 4338 | -9/Scraptown | Visited UFD Registry 4338 | -9/Scraptown | Registered with UFD as "Nukeback" 4412 | -9/Scraptown | Visited Modified Component R&D 4495 | -9/Scraptown | Visited Science Guys 4596 | -9/Scraptown | Visited Abandonware Association 4628 | -9/Scraptown | Learned abandonware demo "TRNCOAT.EXE" 4788 | -9/Scraptown | Discovered new exit (range 3) 4848 | -9/Scraptown | Visited DA-N13 Charitable Foundation 4856 | -9/Scraptown | Found DCF Scrap (28 items) 4916 | -9/Scraptown | Visited A0-MCA Data Center 4924 | -9/Scraptown | Given a B rating by A0-MCA 4955 | -9/Scraptown | Visited Infowarlord's Domain 4962 | -9/Scraptown | Found Exp. Sensor Array 5009 | -9/Scraptown | Visited LU-1G1's Boring Crew 5070 | -9/Scraptown | Visited Botcube Research 5101 | -9/Scraptown | Visited Curators Association 5141 | -9/Scraptown | Visited Scrap Suit Storage 5380 | -9/Scraptown | Met Optimus 5380 | -9/Scraptown | Accepted into 0bPrime 5780 | -9/Scraptown | Civil war broke out across Scraptown 5910 | -9/Scraptown | Optimus destroyed in the chaos of civil war 6728 | -9/Scraptown | Destroyed by T7-XPG(j) with Overtuned Pulse Rifle Last Messages --------------- 06614_ Acquired 45 matter. 06627_ Flexi-carbon Leg destroyed. 06627_ Destroyed Ovr. Pulse Rifle. 06634_ DP-8KA(j) cannibalizes Mak. Microdissipator Network to repair Mak. Microdissipator Network. 06637_ 0C-428(g): "Not fair, they have Elites!" 06646_ DP-8KA(j) cannibalizes Ovr. Titanium Leg to repair Ovr. Titanium Leg. 06646_ DP-8KA(j) destroyed. 06655_ 0C-428(g) destroyed. 06682_ 8I-QEO(M) destroyed. 06692_ System corrupted: Matter fused (-10). 06697_ Bolt penetrates Wall. 06697_ Bolt penetrates YU-49G(p). 06698_ Acquired 10 matter. 06700_ Bolt penetrates Wall. 06701_ Chain reaction triggered in Lgt. Deuterium Engine. 06702_ Bolt penetrates Wall. Map ----- +----------------------------------------------------+ | | | | | | | | | ?????????????????????????????????????????????????? | | ?????????????????????????????????????????????????? | | ?????????????????????????????????????????????????? | | ?????????????????????????????????????????????????? | | ?????????????????????????????????????????????????? | | ?????????????????????????????????????????????????? | | ?????????????????????????????????????????????????? | | ?????????????????????????????????????????????????? | | ?????????????????????????????????????????????????? | | ?????????????????????????????????????????????????? | | ?????????????????????????????????????????????????? | | ????????????????????????????????#####????????????? | | ????????????????????????????????#"""#????????????? | | ?####################??####?????#" "#????????????? | | ?"""##"""##""|##" # ###[=##????# < #????????????? | | ?"" ##"" ##""|##!!=;%;;!=[!###### ##???????????? | | #"" [!%p%!%[j #???????????? | | # [!!=%!%! #???????????? | | ######################%!!=%###########???????????? | | ??????????????????????#!=[!#?????????????????????? | | #############??????????#=!#??????????????????????? | | #"""""""""""#??????????#*@#??????????????????????? | | #""" X """""############%[#??????????????????????? | | #"""" """#"""""""""##x=#??????????????????????? | | #""!" "# " " " "#%!#??????????????????????? | | #"""" """# #][%##########?????????????? | | #"" """"# "# #" ##%!!=**## #?????????????? | | # ""# "#X#"==##!!#==[##!* #?????????????? | | #&" "" ""# "###"%=##=[#*%[ !*%!#?????????????? | | #&" "" ""# """" /!##!!;[!]!=*[!#?????????????? | | #" # !!=! ##=!#]=*=%! #?????????????? | | # "# ==!**=##%%#] !!! #?????????????? | | ###### ###########!#[###![##!#######?????????????? | | ######%#""""=!#[##*##!=#%!##%#############???????? | | """ "!* =!=!=[!%==!=*%!%%=! ##""""""""""???????? | | =%%%= %!!%=%!!==%=%!!=[!/## """""""""???????? | | !==**=%=%!%!=%[!*[*[[=%!["# """""""""#??????? | | !==! !!=[=[*==%*%=*!==*"## " """"#??????? | | !==%![[!!==!!%![=!=%!*= ## """"#??????? | | = = %![!====%[!=%|!=%=%* ! """"#??????? | | """""""" " """""!=!%"!!![===!"## """""""""#??????? | | """""""""""""""""""!""!**!%!%[## ""!""""""#??????? | | #### ################=%!%!!["## """""""""#??????? | | ##????????# [*%[=["############???????? | | X"?????????#"!%=[!*[##?????????????????? | | "" "" ##????????#"[=!%!*%!##########????????? | +----------------------------------------------------+ Best States ------------- Heat Dissipation 50 Energy Generation 14 Energy Capacity 280 Matter Stores 300 Matter Capacity 300 Sight Range 16 Robot Scan Range 20 Terrain Scan Density 10 Armor Coverage 225 Evasion (%) 63 Recoil Reduction 3 Offensive Hacking 10 Item Schematics ----------------- Imp. Flight Unit | -9/Materials | Scanalyzed Sml. Storage Unit | -9/Materials | Scanalyzed Flail | -9/Materials | Scanalyzed Structural Scanner | -9/Materials | Hacked Lgt. Nuclear Core | -9/Recycling | Hacked Imp. Targeting Computer | -9/Recycling | Hacked Field Laser | -9/Recycling | Hacked Trap Scanner | -9/Recycling | Hacked Visual Processing Unit | -9/Recycling | Hacked Robot Schematics ------------------ None Fabricated ------------ Nothing Repaired ---------- Nothing Alien Tech Used ----------------- None Achievements -------------- Quantum Hacking Quick And Dirty Challenges ------------ None Game ------ Seed ModifiedFissionCompanion Manual? 0 Play Time 00:58:37 Cumulative 55.6 hours Start 2025.08.17 @ 13:42:36 End 2025.08.17 @ 14:51:08 Sessions 1 Manual Loads 0 Difficulty Rogue Special Mode None Game No. 42 Rogue 42 Adventurer 0 Explorer 0 Win Type - Total 1 Types 1/0/0/0/0/0/0/0/0/0 Lore% 53 Gallery% 42 Achievement% 37 Wizard Run 0 Options --------- Layout 1 ASCII 0 Keyboard 0 Movement Mouse Keybinds 0 Fullscreen 1 Font 24/Smallcaps Map View 50x35 Zoom Use 0% Tactical HUD 1 Map Filters NONE Filters NONE Steam 1 RUN: e70511ef-4965-42fe-81b0-e81059816019